{"text_format":"1","workbook":"xlsx","n_sheets":1,"sheets":["Prilog 2"],"not_rendered":{"charts":0,"images":3,"macros":1,"external_links":0,"defined_names":1,"comments":0,"pivot_tables":0},"unopened":[],"bounds":{"document_bytes":16777216,"sheet_cells":100000,"rows_first":2000,"rows_last":500,"rows_between":2000,"halvings":0,"cell_chars":16384,"cell_head_chars":4096},"cells_cut":0,"cells_raw":0,"read":"whole","date_system":"1900"}

{"sheet":"Prilog 2","index":0,"n_rows":85,"n_cols":25,"rows_kept":85,"cut":false,"hidden":false,"merged":[[84,5,84,8],[15,4,16,4],[14,5,16,5],[14,6,16,6],[14,7,16,7],[14,8,16,8],[83,3,83,4],[14,24,16,24],[81,0,81,2],[84,0,84,2],[15,14,16,14],[15,15,16,15],[15,16,16,16],[15,17,16,17],[15,18,16,18],[15,9,16,9],[15,10,16,10],[15,11,16,11],[15,12,16,12],[15,13,16,13],[15,19,16,19],[15,20,16,20],[15,21,16,21],[2,1,2,7],[6,3,6,4],[14,23,16,23],[14,9,14,21],[14,22,16,22],[14,1,14,4],[15,1,16,1],[15,2,15,3],[82,0,83,2],[82,5,83,8],[76,0,76,8],[14,0,16,0],[81,5,81,8]]}
[null,"PRILOG 2"]
[]
[null,"OČEVIDNIK O OBRAČUNU NAKNADE ZA ZAŠTITU VODA ZA OSOBE KOJE OBAVLJAJU GOSPODARSKU DJELATNOST"]
[null,"PODACI ZA  ",null," GODINU"]
[]
[null,"                                   Datum:"]
[null,"                                   Naš broj:"]
[]
[]
[null,"                                   Isporučitelj vodne usluge:",null,null,null,"     OIB"]
[null,"                                   Sjedište: Ulica i k.br.:",null,null,null,"      MB"]
[null,"                                                     Naselje:"]
[]
[]
["Redni broj","OSNOVNI PODACI O OBVEZNIKU",null,null,null,"NZV obračunava (HV/IVU)","Naziv komunalnog UPOV-a","Naziv potrošačkog mjesta","Šifra potrošačkog mjesta","KOLIČINA ISPORUČENE VODE (m³)",null,null,null,null,null,null,null,null,null,null,null,null,"T x k₂ (EUR/m³)","Iznos obračunate naknade (EUR)","Iznos naplaćene naknade (EUR)"]
[null,"Onečišćivač na lokaciji","Adresa lokacije",null,"OIB",null,null,null,null,"Siječanj","Veljača","Ožujak","Travanj","Svibanj","Lipanj","Srpanj","Kolovoz","Rujan","Listopad","Studeni","Prosinac","Ukupno"]
[null,null,"Naselje","Ulica i kućni br."]
[null,null,null,null,null,null,null,null,null,null,null,null,null,null,null,null,null,null,null,null,null,{"$f":"SUM(Table1[[#This Row],[Column10]:[Column21]])","v":0},null,{"$f":"Table1[[#This Row],[Column22]]*Table1[[#This Row],[Column23]]","v":0}]
[null,null,null,null,null,null,null,null,null,null,null,null,null,null,null,null,null,null,null,null,null,{"$f":"SUM(Table1[[#This Row],[Column10]:[Column21]])","v":0},null,{"$f":"Table1[[#This Row],[Column22]]*Table1[[#This Row],[Column23]]","v":0}]
[null,null,null,null,null,null,null,null,null,null,null,null,null,null,null,null,null,null,null,null,null,{"$f":"SUM(Table1[[#This Row],[Column10]:[Column21]])","v":0},null,{"$f":"Table1[[#This Row],[Column22]]*Table1[[#This Row],[Column23]]","v":0}]
[null,null,null,null,null,null,null,null,null,null,null,null,null,null,null,null,null,null,null,null,null,{"$f":"SUM(Table1[[#This Row],[Column10]:[Column21]])","v":0},null,{"$f":"Table1[[#This Row],[Column22]]*Table1[[#This Row],[Column23]]","v":0}]
[null,null,null,null,null,null,null,null,null,null,null,null,null,null,null,null,null,null,null,null,null,{"$f":"SUM(Table1[[#This Row],[Column10]:[Column21]])","v":0},null,{"$f":"Table1[[#This Row],[Column22]]*Table1[[#This Row],[Column23]]","v":0}]
[null,null,null,null,null,null,null,null,null,null,null,null,null,null,null,null,null,null,null,null,null,{"$f":"SUM(Table1[[#This Row],[Column10]:[Column21]])","v":0},null,{"$f":"Table1[[#This Row],[Column22]]*Table1[[#This Row],[Column23]]","v":0}]
[null,null,null,null,null,null,null,null,null,null,null,null,null,null,null,null,null,null,null,null,null,{"$f":"SUM(Table1[[#This Row],[Column10]:[Column21]])","v":0},null,{"$f":"Table1[[#This Row],[Column22]]*Table1[[#This Row],[Column23]]","v":0}]
[null,null,null,null,null,null,null,null,null,null,null,null,null,null,null,null,null,null,null,null,null,{"$f":"SUM(Table1[[#This Row],[Column10]:[Column21]])","v":0},null,{"$f":"Table1[[#This Row],[Column22]]*Table1[[#This Row],[Column23]]","v":0}]
[null,null,null,null,null,null,null,null,null,null,null,null,null,null,null,null,null,null,null,null,null,{"$f":"SUM(Table1[[#This Row],[Column10]:[Column21]])","v":0},null,{"$f":"Table1[[#This Row],[Column22]]*Table1[[#This Row],[Column23]]","v":0}]
[null,null,null,null,null,null,null,null,null,null,null,null,null,null,null,null,null,null,null,null,null,{"$f":"SUM(Table1[[#This Row],[Column10]:[Column21]])","v":0},null,{"$f":"Table1[[#This Row],[Column22]]*Table1[[#This Row],[Column23]]","v":0}]
[null,null,null,null,null,null,null,null,null,null,null,null,null,null,null,null,null,null,null,null,null,{"$f":"SUM(Table1[[#This Row],[Column10]:[Column21]])","v":0},null,{"$f":"Table1[[#This Row],[Column22]]*Table1[[#This Row],[Column23]]","v":0}]
[null,null,null,null,null,null,null,null,null,null,null,null,null,null,null,null,null,null,null,null,null,{"$f":"SUM(Table1[[#This Row],[Column10]:[Column21]])","v":0},null,{"$f":"Table1[[#This Row],[Column22]]*Table1[[#This Row],[Column23]]","v":0}]
[null,null,null,null,null,null,null,null,null,null,null,null,null,null,null,null,null,null,null,null,null,{"$f":"SUM(Table1[[#This Row],[Column10]:[Column21]])","v":0},null,{"$f":"Table1[[#This Row],[Column22]]*Table1[[#This Row],[Column23]]","v":0}]
[null,null,null,null,null,null,null,null,null,null,null,null,null,null,null,null,null,null,null,null,null,{"$f":"SUM(Table1[[#This Row],[Column10]:[Column21]])","v":0},null,{"$f":"Table1[[#This Row],[Column22]]*Table1[[#This Row],[Column23]]","v":0}]
[null,null,null,null,null,null,null,null,null,null,null,null,null,null,null,null,null,null,null,null,null,{"$f":"SUM(Table1[[#This Row],[Column10]:[Column21]])","v":0},null,{"$f":"Table1[[#This Row],[Column22]]*Table1[[#This Row],[Column23]]","v":0}]
[null,null,null,null,null,null,null,null,null,null,null,null,null,null,null,null,null,null,null,null,null,{"$f":"SUM(Table1[[#This Row],[Column10]:[Column21]])","v":0},null,{"$f":"Table1[[#This Row],[Column22]]*Table1[[#This Row],[Column23]]","v":0}]
[null,null,null,null,null,null,null,null,null,null,null,null,null,null,null,null,null,null,null,null,null,{"$f":"SUM(Table1[[#This Row],[Column10]:[Column21]])","v":0},null,{"$f":"Table1[[#This Row],[Column22]]*Table1[[#This Row],[Column23]]","v":0}]
[null,null,null,null,null,null,null,null,null,null,null,null,null,null,null,null,null,null,null,null,null,{"$f":"SUM(Table1[[#This Row],[Column10]:[Column21]])","v":0},null,{"$f":"Table1[[#This Row],[Column22]]*Table1[[#This Row],[Column23]]","v":0}]
[null,null,null,null,null,null,null,null,null,null,null,null,null,null,null,null,null,null,null,null,null,{"$f":"SUM(Table1[[#This Row],[Column10]:[Column21]])","v":0},null,{"$f":"Table1[[#This Row],[Column22]]*Table1[[#This Row],[Column23]]","v":0}]
[null,null,null,null,null,null,null,null,null,null,null,null,null,null,null,null,null,null,null,null,null,{"$f":"SUM(Table1[[#This Row],[Column10]:[Column21]])","v":0},null,{"$f":"Table1[[#This Row],[Column22]]*Table1[[#This Row],[Column23]]","v":0}]
[null,null,null,null,null,null,null,null,null,null,null,null,null,null,null,null,null,null,null,null,null,{"$f":"SUM(Table1[[#This Row],[Column10]:[Column21]])","v":0},null,{"$f":"Table1[[#This Row],[Column22]]*Table1[[#This Row],[Column23]]","v":0}]
[null,null,null,null,null,null,null,null,null,null,null,null,null,null,null,null,null,null,null,null,null,{"$f":"SUM(Table1[[#This Row],[Column10]:[Column21]])","v":0},null,{"$f":"Table1[[#This Row],[Column22]]*Table1[[#This Row],[Column23]]","v":0}]
[null,null,null,null,null,null,null,null,null,null,null,null,null,null,null,null,null,null,null,null,null,{"$f":"SUM(Table1[[#This Row],[Column10]:[Column21]])","v":0},null,{"$f":"Table1[[#This Row],[Column22]]*Table1[[#This Row],[Column23]]","v":0}]
[null,null,null,null,null,null,null,null,null,null,null,null,null,null,null,null,null,null,null,null,null,{"$f":"SUM(Table1[[#This Row],[Column10]:[Column21]])","v":0},null,{"$f":"Table1[[#This Row],[Column22]]*Table1[[#This Row],[Column23]]","v":0}]
[null,null,null,null,null,null,null,null,null,null,null,null,null,null,null,null,null,null,null,null,null,{"$f":"SUM(Table1[[#This Row],[Column10]:[Column21]])","v":0},null,{"$f":"Table1[[#This Row],[Column22]]*Table1[[#This Row],[Column23]]","v":0}]
[null,null,null,null,null,null,null,null,null,null,null,null,null,null,null,null,null,null,null,null,null,{"$f":"SUM(Table1[[#This Row],[Column10]:[Column21]])","v":0},null,{"$f":"Table1[[#This Row],[Column22]]*Table1[[#This Row],[Column23]]","v":0}]
[null,null,null,null,null,null,null,null,null,null,null,null,null,null,null,null,null,null,null,null,null,{"$f":"SUM(Table1[[#This Row],[Column10]:[Column21]])","v":0},null,{"$f":"Table1[[#This Row],[Column22]]*Table1[[#This Row],[Column23]]","v":0}]
[null,null,null,null,null,null,null,null,null,null,null,null,null,null,null,null,null,null,null,null,null,{"$f":"SUM(Table1[[#This Row],[Column10]:[Column21]])","v":0},null,{"$f":"Table1[[#This Row],[Column22]]*Table1[[#This Row],[Column23]]","v":0}]
[null,null,null,null,null,null,null,null,null,null,null,null,null,null,null,null,null,null,null,null,null,{"$f":"SUM(Table1[[#This Row],[Column10]:[Column21]])","v":0},null,{"$f":"Table1[[#This Row],[Column22]]*Table1[[#This Row],[Column23]]","v":0}]
[null,null,null,null,null,null,null,null,null,null,null,null,null,null,null,null,null,null,null,null,null,{"$f":"SUM(Table1[[#This Row],[Column10]:[Column21]])","v":0},null,{"$f":"Table1[[#This Row],[Column22]]*Table1[[#This Row],[Column23]]","v":0}]
[null,null,null,null,null,null,null,null,null,null,null,null,null,null,null,null,null,null,null,null,null,{"$f":"SUM(Table1[[#This Row],[Column10]:[Column21]])","v":0},null,{"$f":"Table1[[#This Row],[Column22]]*Table1[[#This Row],[Column23]]","v":0}]
[null,null,null,null,null,null,null,null,null,null,null,null,null,null,null,null,null,null,null,null,null,{"$f":"SUM(Table1[[#This Row],[Column10]:[Column21]])","v":0},null,{"$f":"Table1[[#This Row],[Column22]]*Table1[[#This Row],[Column23]]","v":0}]
[null,null,null,null,null,null,null,null,null,null,null,null,null,null,null,null,null,null,null,null,null,{"$f":"SUM(Table1[[#This Row],[Column10]:[Column21]])","v":0},null,{"$f":"Table1[[#This Row],[Column22]]*Table1[[#This Row],[Column23]]","v":0}]
[null,null,null,null,null,null,null,null,null,null,null,null,null,null,null,null,null,null,null,null,null,{"$f":"SUM(Table1[[#This Row],[Column10]:[Column21]])","v":0},null,{"$f":"Table1[[#This Row],[Column22]]*Table1[[#This Row],[Column23]]","v":0}]
[null,null,null,null,null,null,null,null,null,null,null,null,null,null,null,null,null,null,null,null,null,{"$f":"SUM(Table1[[#This Row],[Column10]:[Column21]])","v":0},null,{"$f":"Table1[[#This Row],[Column22]]*Table1[[#This Row],[Column23]]","v":0}]
[null,null,null,null,null,null,null,null,null,null,null,null,null,null,null,null,null,null,null,null,null,{"$f":"SUM(Table1[[#This Row],[Column10]:[Column21]])","v":0},null,{"$f":"Table1[[#This Row],[Column22]]*Table1[[#This Row],[Column23]]","v":0}]
[null,null,null,null,null,null,null,null,null,null,null,null,null,null,null,null,null,null,null,null,null,{"$f":"SUM(Table1[[#This Row],[Column10]:[Column21]])","v":0},null,{"$f":"Table1[[#This Row],[Column22]]*Table1[[#This Row],[Column23]]","v":0}]
[null,null,null,null,null,null,null,null,null,null,null,null,null,null,null,null,null,null,null,null,null,{"$f":"SUM(Table1[[#This Row],[Column10]:[Column21]])","v":0},null,{"$f":"Table1[[#This Row],[Column22]]*Table1[[#This Row],[Column23]]","v":0}]
[null,null,null,null,null,null,null,null,null,null,null,null,null,null,null,null,null,null,null,null,null,{"$f":"SUM(Table1[[#This Row],[Column10]:[Column21]])","v":0},null,{"$f":"Table1[[#This Row],[Column22]]*Table1[[#This Row],[Column23]]","v":0}]
[null,null,null,null,null,null,null,null,null,null,null,null,null,null,null,null,null,null,null,null,null,{"$f":"SUM(Table1[[#This Row],[Column10]:[Column21]])","v":0},null,{"$f":"Table1[[#This Row],[Column22]]*Table1[[#This Row],[Column23]]","v":0}]
[null,null,null,null,null,null,null,null,null,null,null,null,null,null,null,null,null,null,null,null,null,{"$f":"SUM(Table1[[#This Row],[Column10]:[Column21]])","v":0},null,{"$f":"Table1[[#This Row],[Column22]]*Table1[[#This Row],[Column23]]","v":0}]
[null,null,null,null,null,null,null,null,null,null,null,null,null,null,null,null,null,null,null,null,null,{"$f":"SUM(Table1[[#This Row],[Column10]:[Column21]])","v":0},null,{"$f":"Table1[[#This Row],[Column22]]*Table1[[#This Row],[Column23]]","v":0}]
[null,null,null,null,null,null,null,null,null,null,null,null,null,null,null,null,null,null,null,null,null,{"$f":"SUM(Table1[[#This Row],[Column10]:[Column21]])","v":0},null,{"$f":"Table1[[#This Row],[Column22]]*Table1[[#This Row],[Column23]]","v":0}]
[null,null,null,null,null,null,null,null,null,null,null,null,null,null,null,null,null,null,null,null,null,{"$f":"SUM(Table1[[#This Row],[Column10]:[Column21]])","v":0},null,{"$f":"Table1[[#This Row],[Column22]]*Table1[[#This Row],[Column23]]","v":0}]
[null,null,null,null,null,null,null,null,null,null,null,null,null,null,null,null,null,null,null,null,null,{"$f":"SUM(Table1[[#This Row],[Column10]:[Column21]])","v":0},null,{"$f":"Table1[[#This Row],[Column22]]*Table1[[#This Row],[Column23]]","v":0}]
[null,null,null,null,null,null,null,null,null,null,null,null,null,null,null,null,null,null,null,null,null,{"$f":"SUM(Table1[[#This Row],[Column10]:[Column21]])","v":0},null,{"$f":"Table1[[#This Row],[Column22]]*Table1[[#This Row],[Column23]]","v":0}]
[null,null,null,null,null,null,null,null,null,null,null,null,null,null,null,null,null,null,null,null,null,{"$f":"SUM(Table1[[#This Row],[Column10]:[Column21]])","v":0},null,{"$f":"Table1[[#This Row],[Column22]]*Table1[[#This Row],[Column23]]","v":0}]
[null,null,null,null,null,null,null,null,null,null,null,null,null,null,null,null,null,null,null,null,null,{"$f":"SUM(Table1[[#This Row],[Column10]:[Column21]])","v":0},null,{"$f":"Table1[[#This Row],[Column22]]*Table1[[#This Row],[Column23]]","v":0}]
[null,null,null,null,null,null,null,null,null,null,null,null,null,null,null,null,null,null,null,null,null,{"$f":"SUM(Table1[[#This Row],[Column10]:[Column21]])","v":0},null,{"$f":"Table1[[#This Row],[Column22]]*Table1[[#This Row],[Column23]]","v":0}]
[null,null,null,null,null,null,null,null,null,null,null,null,null,null,null,null,null,null,null,null,null,{"$f":"SUM(Table1[[#This Row],[Column10]:[Column21]])","v":0},null,{"$f":"Table1[[#This Row],[Column22]]*Table1[[#This Row],[Column23]]","v":0}]
[null,null,null,null,null,null,null,null,null,null,null,null,null,null,null,null,null,null,null,null,null,{"$f":"SUM(Table1[[#This Row],[Column10]:[Column21]])","v":0},null,{"$f":"Table1[[#This Row],[Column22]]*Table1[[#This Row],[Column23]]","v":0}]
[null,null,null,null,null,null,null,null,null,null,null,null,null,null,null,null,null,null,null,null,null,{"$f":"SUM(Table1[[#This Row],[Column10]:[Column21]])","v":0},null,{"$f":"Table1[[#This Row],[Column22]]*Table1[[#This Row],[Column23]]","v":0}]
[null,null,null,null,null,null,null,null,null,null,null,null,null,null,null,null,null,null,null,null,null,{"$f":"SUM(Table1[[#This Row],[Column10]:[Column21]])","v":0},null,{"$f":"Table1[[#This Row],[Column22]]*Table1[[#This Row],[Column23]]","v":0}]
[null,null,null,null,null,null,null,null,null,null,null,null,null,null,null,null,null,null,null,null,null,{"$f":"SUM(Table1[[#This Row],[Column10]:[Column21]])","v":0},null,{"$f":"Table1[[#This Row],[Column22]]*Table1[[#This Row],[Column23]]","v":0}]
[null,null,null,null,null,null,null,null,null,null,null,null,null,null,null,null,null,null,null,null,null,{"$f":"SUM(Table1[[#This Row],[Column10]:[Column21]])","v":0},null,{"$f":"Table1[[#This Row],[Column22]]*Table1[[#This Row],[Column23]]","v":0}]
[null,null,null,null,null,null,null,null,null,null,null,null,null,null,null,null,null,null,null,null,null,{"$f":"SUM(Table1[[#This Row],[Column10]:[Column21]])","v":0},null,{"$f":"Table1[[#This Row],[Column22]]*Table1[[#This Row],[Column23]]","v":0}]
[null,null,null,null,null,null,null,null,null,null,null,null,null,null,null,null,null,null,null,null,null,{"$f":"SUM(Table1[[#This Row],[Column10]:[Column21]])","v":0},null,{"$f":"Table1[[#This Row],[Column22]]*Table1[[#This Row],[Column23]]","v":0}]
[null,null,null,null,null,null,null,null,null,null,null,null,null,null,null,null,null,null,null,null,null,{"$f":"SUM(Table1[[#This Row],[Column10]:[Column21]])","v":0},null,{"$f":"Table1[[#This Row],[Column22]]*Table1[[#This Row],[Column23]]","v":0}]
[null,null,null,null,null,null,null,null,null,null,null,null,null,null,null,null,null,null,null,null,null,{"$f":"SUM(Table1[[#This Row],[Column10]:[Column21]])","v":0},null,{"$f":"Table1[[#This Row],[Column22]]*Table1[[#This Row],[Column23]]","v":0}]
["SVEUKUPNO:",null,null,null,null,null,null,null,null,{"$f":"SUM(Table1[Column10])","v":0},{"$f":"SUM(Table1[Column11])","v":0},{"$f":"SUM(Table1[Column12])","v":0},{"$f":"SUM(Table1[Column13])","v":0},{"$f":"SUM(Table1[Column14])","v":0},{"$f":"SUM(Table1[Column15])","v":0},{"$f":"SUM(Table1[Column16])","v":0},{"$f":"SUM(Table1[Column17])","v":0},{"$f":"SUM(Table1[Column18])","v":0},{"$f":"SUM(Table1[Column19])","v":0},{"$f":"SUM(Table1[Column20])","v":0},{"$f":"SUM(Table1[Column21])","v":0},{"$f":"SUM(Table1[Column22])","v":0},null,{"$f":"SUM(Table1[Column24])","v":0},{"$f":"SUM(Table1[Column25])","v":0}]
[]
[]
[]
[]
["Odgovorna osoba za točnost podataka",null,null,null,null,"Odgovorna osoba IVU-a"]
[]
[null,null,null,"M.P."]
["Ime i prezime",null,null,null,null,"Ime i prezime"]